fUSD/lending_fUSD_20260116
["ID","MTS","AMOUNT","RATE_DAILY","PERIOD"]
[402120190,1768529454921,-500.0,0.00035616,10]
[402120191,1768529454932,-500.0,0.00035616,10]
[402120192,1768529454943,-1278.53,0.00035616,10]
[402120193,1768529454953,-500.0,0.00035616,10]
[402120194,1768529454963,-529.74657878,0.00035616,10]
[402120195,1768529454973,-529.09901759,0.00035616,10]
[402120196,1768529454983,-500.0,0.00035616,10]
[402120197,1768529454993,-500.0,0.00035616,10]
[402120198,1768529455004,-500.0,0.00035616,10]
[402120199,1768529455014,-711.68,0.00035616,10]
[402120200,1768529455025,-1185.03,0.00035616,10]
[402120201,1768529455301,-2431.65,0.00035616,10]
[402120202,1768529455311,-500.0,0.00035616,10]
[402120203,1768529455320,-500.0,0.00035616,10]
[402120204,1768529455329,-1096.15,0.00035616,10]
[402120205,1768529455339,-1026.38,0.00035616,10]
[402120206,1768529455349,-561.51335293,0.00035616,10]
[402120207,1768529455358,-551.21,0.00035616,10]
[402120208,1768529455367,-500.0,0.00035616,10]
[402120209,1768529455376,-1296.7,0.00035616,10]
[402120210,1768529455386,-691.87,0.00035616,10]
[402120211,1768529455395,-1586.52,0.00035616,10]
[402120212,1768529455404,-500.0,0.00035616,10]
[402120213,1768529455412,-505.44035984,0.00035616,10]
[402120214,1768529455421,-501.99493829,0.00035616,10]
[402120215,1768529455430,-685.86,0.00035616,10]
[402120216,1768529455439,-554.42817268,0.00035616,10]
[402120217,1768529455448,-886.14,0.00035616,10]
[402120218,1768529455457,-500.0,0.00035616,10]
[402120219,1768529455467,-802.54,0.00035616,10]
[402120220,1768529455476,-522.44,0.00035616,10]
[402120221,1768529455485,-500.0,0.00035616,10]
[402120222,1768529455494,-500.0,0.00035616,10]
[402120223,1768529455504,-1345.69,0.00035616,10]
[402120224,1768529455514,-500.0,0.00035616,10]
[402120225,1768529455525,-501.55134596,0.00035616,10]
[402120226,1768529455534,-799.59,0.00035616,10]
[402120227,1768529455543,-932.18,0.00035616,10]
[402120228,1768529455552,-500.0,0.00035616,10]
[402120229,1768529455561,-500.0,0.00035616,10]
[402120230,1768529455570,-500.0,0.00035616,2]
[402120231,1768529455579,-3909.07,0.00035616,10]
[402120232,1768529455588,-500.0,0.00035616,10]
[402120233,1768529455597,-500.0,0.00035616,10]
[402120234,1768529455606,-896.6,0.00035616,10]
[402120235,1768529455615,-500.0,0.00035616,10]
[402120236,1768529455624,-345.28036249,0.00035616,10]
[402120237,1768529455633,-946.08,0.00035616,10]
[402120238,1768529455642,-1307.68,0.00035616,10]
[402120239,1768529455651,-1917.81,0.00035616,10]
[402120240,1768529455660,-889.3,0.00035616,10]
[402120241,1768529455669,-795.96,0.00035616,10]
[402120242,1768529455678,-290.76442045,0.00035616,10]
[402120243,1768529455687,-901.71,0.00035616,10]
[402120244,1768529455696,-920.48,0.00035616,10]
[402120245,1768529455705,-502.92515442,0.00035616,10]
[402120246,1768529455715,-702.13,0.00035616,10]
[402120247,1768529455724,-500.0,0.00035616,10]
[402120248,1768529455733,-502.16467197,0.00035616,10]
[402120249,1768529455742,-564.31,0.00035616,10]
[402120250,1768529455751,-1000.0,0.00035616,10]
[402120251,1768529455760,-500.0,0.00035616,10]
[402120252,1768529455769,-606.07,0.00035616,10]
[402120253,1768529455778,-817.22,0.00035616,10]
[402120254,1768529455787,-508.67255344,0.00035616,10]
[402120255,1768529455796,-1229.72,0.00035616,10]
[402120256,1768529455805,-1990.28,0.00035616,10]
[402120257,1768529455814,-505.64521364,0.00035616,10]
[402120258,1768529455823,-500.0,0.00035616,10]
[402120259,1768529455832,-711.58,0.00035616,10]
[402120260,1768529455841,-960.38,0.00035616,10]
[402120261,1768529455851,-1032.37,0.00035616,10]
[402120262,1768529455860,-1583.14,0.00035616,10]
[402120263,1768529455870,-500.0,0.00035616,10]
[402120264,1768529455879,-505.17202308,0.00035616,10]
[402120265,1768529455888,-973.48,0.00035616,10]
[402120266,1768529455897,-1345.06,0.00035616,10]
[402120267,1768529455907,-500.0,0.00035616,10]
[402120268,1768529455916,-591.46,0.00035616,10]
[402120269,1768529455925,-500.0,0.00035616,10]
[402120270,1768529455934,-500.0,0.00035616,10]
[402120271,1768529455944,-500.0,0.00035616,10]
[402120272,1768529455953,-500.0,0.00035616,10]
[402120273,1768529455962,-500.0,0.00035616,10]
[402120274,1768529455971,-505.51894968,0.00035616,10]
[402120275,1768529455980,-797.95,0.00035616,10]
[402120276,1768529455990,-1321.33,0.00035616,10]
[402120277,1768529455999,-500.0,0.00035616,10]
[402120278,1768529456008,-799.18,0.00035616,10]
[402120279,1768529456017,-518.30218187,0.00035616,10]
[402120280,1768529456027,-3663.09,0.00035616,10]
[402120281,1768529456036,-502.53139929,0.00035616,10]
[402120282,1768529456046,-1754.36,0.00035616,10]
[402120283,1768529456055,-972.11,0.00035616,10]
[402120284,1768529456064,-1497.97,0.00035616,10]
[402120285,1768529456074,-691.11,0.00035616,10]
[402120286,1768529456083,-502.17092893,0.00035616,10]
[402120287,1768529456092,-659.02,0.00035616,10]
[402120288,1768529456102,-500.0,0.00035616,10]
[402120289,1768529456111,-754.12,0.00035616,10]
[402120290,1768529456120,-505.51152399,0.00035616,10]
[402120291,1768529456129,-713.49,0.00035616,10]
[402120292,1768529456138,-500.0,0.00035616,10]
[402120293,1768529456149,-1266.31,0.00035616,10]
[402120294,1768529456158,-886.81,0.00035616,10]
[402120295,1768529456167,-500.0,0.00035616,10]
[402120296,1768529456182,-500.0,0.00035616,10]
[402120297,1768529456191,-502.4597894,0.00035616,10]
[402120298,1768529456204,-505.8764591,0.00035616,10]
[402120299,1768529456216,-906.35,0.00035616,10]
[402120300,1768529456225,-500.0,0.00035616,10]
[402120301,1768529456235,-500.0,0.00035616,10]
[402120302,1768529456245,-827.14,0.00035616,10]
[402120303,1768529456255,-500.0,0.00035616,10]
[402120304,1768529456264,-502.00744164,0.00035616,10]
[402120305,1768529456272,-543.64,0.00035616,10]
[402120306,1768529456282,-978.42,0.00035616,10]
[402120307,1768529456291,-500.0,0.00035616,10]
[402120308,1768529456301,-500.0,0.00035616,10]
[402120309,1768529456310,-1016.17,0.00035616,10]
[402120310,1768529456320,-591.23,0.00035616,10]
[402120311,1768529456329,-500.0,0.00035616,10]
[402120312,1768529456340,-1596.22,0.00035616,10]
[402120313,1768529456350,-500.0,0.00035616,10]
[402120314,1768529456359,-500.0,0.00035616,10]
[402120315,1768529456368,-783.81,0.00035616,10]
[402120316,1768529456378,-502.68613163,0.00035616,10]
[402120317,1768529456387,-500.0,0.00035616,10]
[402120318,1768529456396,-500.0,0.00035616,10]
[402120319,1768529456406,-500.0,0.00035616,10]
[402120320,1768529456416,-500.0,0.00035616,10]
[402120321,1768529456425,-500.0,0.00035616,10]
[402120322,1768529456435,-516.49,0.00035616,10]
[402120323,1768529456445,-500.0,0.00035616,10]
[402120324,1768529456455,-500.0,0.00035616,10]
[402120325,1768529456464,-797.15,0.00035616,10]
[402120326,1768529456474,-502.63,0.00035616,10]
[402120327,1768529456483,-506.87428023,0.00035616,10]
[402120328,1768529456492,-3716.71,0.00035616,10]
[402120329,1768529456501,-500.0,0.00035616,10]
[402120330,1768529456510,-562.06209008,0.00035616,10]
[402120331,1768529456519,-1137.5,0.00035616,10]
[402120332,1768529456532,-500.0,0.00035616,10]
[402120333,1768529456542,-2589.93,0.00035616,10]
[402120334,1768529456551,-500.0,0.00035616,10]
[402120335,1768529456561,-564.89722128,0.00035616,10]
[402120336,1768529456570,-992.73,0.00035616,10]
[402120337,1768529456579,-935.51,0.00035616,10]
[402120338,1768529456588,-507.0556666,0.00035616,10]
[402120339,1768529456597,-1393.7,0.00035616,10]
[402120340,1768529456607,-500.0,0.00035616,10]
[402120341,1768529456617,-501.95151356,0.00035616,10]
[402120342,1768529456627,-613.61,0.00035616,10]
[402120343,1768529456636,-1834.3,0.00035616,10]
[402120344,1768529456646,-500.0,0.00035616,10]
[402120345,1768529456657,-803.75,0.00035616,10]
[402120346,1768529456666,-557.44,0.00035616,10]
[402120347,1768529456677,-500.0,0.00035616,10]
[402120348,1768529456687,-750.85,0.00035616,10]
[402120349,1768529456696,-500.0,0.00035616,10]
[402120350,1768529456707,-1503.04,0.00035616,10]
[402120351,1768529456716,-537.48178708,0.00035616,10]
[402120352,1768529456727,-591.13914545,0.00035616,10]
[402120353,1768529456736,-717.89,0.00035616,10]
[402120354,1768529456745,-509.75630019,0.00035616,10]
[402120355,1768529456755,-502.65019026,0.00035616,10]
[402120356,1768529456765,-598.08,0.00035616,10]
[402120357,1768529456775,-2838.54,0.00035616,10]
[402120358,1768529456786,-507.38008876,0.00035616,10]
[402120359,1768529456797,-3597.17,0.00035616,10]
[402120360,1768529456806,-623.45,0.00035616,10]
[402120361,1768529456816,-500.0,0.00035616,10]
[402120362,1768529456826,-1032.02,0.00035616,10]
[402120363,1768529456837,-947.4,0.00035616,10]
[402120364,1768529456848,-500.0,0.00035616,10]
[402120365,1768529456858,-500.0,0.00035616,10]
[402120366,1768529456867,-583.04903324,0.00035616,10]
[402120367,1768529456877,-1193.83,0.00035616,10]
[402120368,1768529456886,-518.12,0.00035616,10]
[402120369,1768529456896,-157.90922575,0.00035616,10]
[402120370,1768529456905,-1082.81,0.00035616,10]
[402120371,1768529456915,-501.78031641,0.00035616,10]
[402120372,1768529456924,-1202.01,0.00035616,10]
[402120373,1768529456933,-500.0,0.00035616,10]
[402120374,1768529456942,-504.7343262,0.00035616,10]
[402120375,1768529456952,-1264.16,0.00035616,10]
[402120376,1768529456964,-630.02,0.00035616,10]
[402120377,1768529456974,-500.0,0.00035616,10]
[402120378,1768529456983,-1145.78,0.00035616,10]
[402120379,1768529456992,-500.0,0.00035616,10]
[402120380,1768529457001,-500.0,0.00035616,10]
[402120381,1768529457011,-1120.16,0.00035616,10]
[402120382,1768529457020,-500.0,0.00035616,10]
[402120383,1768529457029,-1088.12,0.00035616,10]
[402120384,1768529457039,-8734.38,0.00035616,10]
[402120385,1768529457049,-552.01,0.00035616,10]
[402120386,1768529457059,-570.3,0.00035616,10]
[402120387,1768529457068,-500.0,0.00035616,10]
[402120388,1768529457077,-642.84,0.00035616,10]
[402120389,1768529457087,-1307.85,0.00035616,10]
[402120390,1768529457097,-553.46,0.00035616,10]
[402120391,1768529457107,-501.05044584,0.00035616,10]
[402120392,1768529457116,-867.12,0.00035616,10]
[402120393,1768529457125,-500.0,0.00035616,10]
[402120394,1768529457134,-520.41563155,0.00035616,10]
[402120395,1768529457144,-504.07503793,0.00035616,10]
[402120396,1768529457153,-630.35,0.00035616,10]
[402120397,1768529457162,-500.0,0.00035616,10]
[402120398,1768529457171,-500.0,0.00035616,10]
[402120399,1768529457183,-500.0,0.00035616,10]
[402120400,1768529457192,-652.08,0.00035616,10]
[402120401,1768529457202,-841.35,0.00035616,10]
[402120402,1768529457213,-500.0,0.00035616,10]
[402120403,1768529457222,-669.23,0.00035616,10]
[402120404,1768529457232,-500.0,0.00035616,10]
[402120405,1768529457242,-1748.71,0.00035616,10]
[402120406,1768529457251,-507.4192653,0.00035616,10]
[402120407,1768529457260,-505.53893272,0.00035616,10]
[402120408,1768529457269,-500.0,0.00035616,10]
[402120409,1768529457278,-595.35,0.00035616,10]
[402120410,1768529457288,-505.25965085,0.00035616,10]
[402120411,1768529457297,-2055.55,0.00035616,10]
[402120412,1768529457307,-519.14124608,0.00035616,10]
[402120413,1768529457317,-697.75,0.00035616,10]
[402120414,1768529457327,-500.0,0.00035616,10]
[402120415,1768529457336,-538.61911702,0.00035616,10]
[402120416,1768529457345,-1983.09,0.00035616,10]
[402120417,1768529457354,-506.17707409,0.00035616,10]
[402120418,1768529457363,-1379.64,0.00035616,10]
[402120419,1768529457372,-500.0,0.00035616,10]
[402120420,1768529457381,-504.0156931,0.00035616,10]
[402120421,1768529457391,-500.0,0.00035616,10]
[402120422,1768529457400,-500.0,0.00035616,10]
[402120423,1768529457409,-500.0,0.00035616,10]
[402120424,1768529457419,-526.96525525,0.00035616,10]
[402120425,1768529457428,-2192.41,0.00035616,10]
[402120426,1768529457437,-505.28716417,0.00035616,10]
[402120427,1768529457447,-511.83230111,0.00035616,120]
[402120428,1768529457456,-563.17,0.00035616,10]
[402120429,1768529457466,-577.04,0.00035616,10]
[402120430,1768529457475,-590.32,0.00035616,10]
[402120431,1768529457484,-500.0,0.00035616,10]
[402120432,1768529457494,-831.94,0.00035616,10]
[402120433,1768529457504,-648.35,0.00035616,10]
[402120434,1768529457518,-500.0,0.00035616,10]
[402120435,1768529457531,-869.68,0.00035616,10]
[402120436,1768529457540,-502.33863377,0.00035616,10]
[402120437,1768529457550,-500.0,0.00035616,10]
[402120438,1768529457560,-500.0,0.00035616,10]
[402120439,1768529457569,-1038.49,0.00035616,10]
[402120440,1768529457578,-819.47,0.00035616,10]
[402120441,1768529457588,-500.0,0.00035616,10]
[402120442,1768529457597,-1599.01,0.00035616,10]
[402120443,1768529457606,-506.40623358,0.00035616,10]
[402120444,1768529457615,-506.37132421,0.00035616,10]
[402120445,1768529457625,-500.0,0.00035616,10]
[402120446,1768529457634,-500.0,0.00035616,10]
[402120447,1768529457646,-500.0,0.00035616,10]
[402120448,1768529457655,-500.0,0.00035616,10]
[402120449,1768529457663,-500.0,0.00035616,10]
[402120450,1768529457673,-500.0,0.00035616,10]
[402120451,1768529457683,-1547.54,0.00035616,10]
[402120452,1768529457692,-799.16,0.00035616,10]
[402120453,1768529457702,-1134.9,0.00035616,10]
[402120454,1768529457712,-500.0,0.00035616,10]
[402120455,1768529457722,-502.46784307,0.00035616,10]
[402120456,1768529457733,-1238.42,0.00035616,10]
[402120457,1768529457742,-507.71499548,0.00035616,10]
[402120458,1768529457751,-725.82,0.00035616,10]
[402120459,1768529457760,-500.0,0.00035616,10]
[402120460,1768529457770,-564.32892858,0.00035616,10]
[402120461,1768529457779,-2130.5,0.00035616,10]
[402120462,1768529457788,-500.0,0.00035616,10]
[402120463,1768529457797,-500.0,0.00035616,10]
[402120464,1768529457806,-500.0,0.00035616,10]
[402120465,1768529457815,-4536.63,0.00035616,10]
[402120466,1768529457824,-506.95605977,0.00035616,10]
[402120467,1768529457833,-501.02518312,0.00035616,10]
[402120468,1768529457842,-670.17,0.00035616,10]
[402120469,1768529457852,-888.15,0.00035616,10]
[402120470,1768529457861,-508.69453919,0.00035616,10]
[402120471,1768529457870,-572.9,0.00035616,10]
[402120472,1768529457879,-500.0,0.00035616,10]
[402120473,1768529457889,-543.47,0.00035616,10]
[402120474,1768529457898,-941.24,0.00035616,10]
[402120475,1768529457907,-1125.86,0.00035616,10]
[402120476,1768529457917,-151.0,0.00035616,7]
[402120477,1768529457926,-1049.9,0.00035616,10]
[402120478,1768529457936,-881.29,0.00035616,10]
[402120479,1768529457946,-501.5933968,0.00035616,10]
[402120480,1768529457955,-506.38091322,0.00035616,10]
[402120481,1768529457965,-151.0,0.00035616,7]
[402120482,1768529457974,-500.0,0.00035616,10]
[402120483,1768529457984,-500.0,0.00035616,10]
[402120484,1768529457994,-500.0,0.00035616,10]
[402120485,1768529458004,-500.0,0.00035616,10]
[402120486,1768529458013,-1106.82,0.00035616,10]
[402120487,1768529458022,-151.0,0.00035616,7]
[402120488,1768529458032,-500.0,0.00035616,10]
[402120489,1768529458041,-526.37,0.00035616,10]
[402120490,1768529458052,-991.41,0.00035616,10]
[402120491,1768529458062,-546.67830581,0.00035616,10]
[402120492,1768529458071,-500.85226147,0.00035616,10]
[402120493,1768529458080,-507.0506464,0.00035616,10]
[402120494,1768529458093,-500.0,0.00035616,10]
[402120495,1768529458104,-510.96056983,0.00035616,10]
[402120496,1768529458114,-501.89888229,0.00035616,10]
[402120497,1768529458123,-595.32781389,0.00035616,10]
[402120498,1768529458133,-326.40638842,0.00035616,10]
[402120499,1768529458142,-500.0,0.00035616,10]
[402120500,1768529458151,-535.07797293,0.00035616,10]
[402120501,1768529458161,-500.0,0.00035616,10]
[402120502,1768529458172,-500.0,0.00035616,10]
[402120503,1768529458186,-502.99,0.00035616,10]
[402120504,1768529458196,-883.67,0.00035616,10]
[402120505,1768529458205,-727.84,0.00035616,10]
[402120506,1768529458215,-351.33690909,0.00035616,10]
[402120507,1768529458224,-788.81,0.00035616,10]
[402120508,1768529458233,-502.36324382,0.00035616,10]
[402120509,1768529458243,-1183.55,0.00035616,10]
[402120510,1768529458251,-1519.97,0.00035616,10]
[402120511,1768529458264,-1496.45,0.00035616,10]
[402120512,1768529458274,-500.0,0.00035616,10]
[402120513,1768529458287,-500.0,0.00035616,10]
[402120514,1768529458297,-867.35,0.00035616,10]
[402120515,1768529458307,-915.84,0.00035616,10]
[402120516,1768529458319,-500.0,0.00035616,10]
[402120517,1768529458329,-505.36121686,0.00035616,10]
[402120518,1768529458338,-1142.17,0.00035616,10]
[402120519,1768529458347,-1250.28,0.00035616,10]
[402120520,1768529458356,-151.0,0.00035616,31]
[402120521,1768529458365,-500.0,0.00035616,10]
[402120522,1768529458373,-501.91363152,0.00035616,10]
[402120523,1768529458382,-500.0,0.00035616,10]
[402120524,1768529458391,-906.14,0.00035616,10]
[402120525,1768529458400,-500.0,0.00035616,10]
[402120526,1768529458409,-523.24,0.00035616,10]
[402120527,1768529458418,-626.65,0.00035616,10]
[402120528,1768529458427,-2087.02,0.00035616,10]
[402120529,1768529458441,-500.0,0.00035616,10]
[402120530,1768529458461,-500.0,0.00035616,10]
[402120531,1768529458476,-1173.18,0.00035616,10]
[402120532,1768529458489,-500.0,0.00035616,10]
[402120533,1768529458501,-500.0,0.00035616,10]
[402120534,1768529458511,-500.0,0.00035616,10]
[402120535,1768529458522,-2531.92,0.00035616,10]
[402120536,1768529458533,-970.0,0.00035616,10]
[402120537,1768529458544,-500.0,0.00035616,10]
[402120538,1768529458555,-500.0,0.00035616,10]
[402120539,1768529458570,-591.94,0.00035616,10]
[402120540,1768529458581,-1229.76,0.00035616,10]
[402120541,1768529458593,-2791.77,0.00035616,10]
[402120542,1768529458603,-500.0,0.00035616,10]
[402120543,1768529458613,-500.0,0.00035616,10]
[402120544,1768529458624,-883.3,0.00035616,10]
[402120545,1768529458634,-500.0,0.00035616,10]
[402120546,1768529458643,-653.73,0.00035616,10]
[402120547,1768529458653,-518.01,0.00035616,10]
[402120548,1768529458663,-1558.99,0.00035616,10]
[402120549,1768529458672,-500.0,0.00035616,10]
[402120550,1768529458681,-548.713383,0.00035616,10]
[402120551,1768529458690,-500.0,0.00035616,10]
[402120552,1768529458699,-500.0,0.00035616,10]
[402120553,1768529458707,-540.10542731,0.00035616,10]
[402120554,1768529458717,-500.0,0.00035616,10]
[402120555,1768529458726,-546.71434111,0.00035616,10]
[402120556,1768529458736,-1599.89,0.00035616,10]
[402120557,1768529458746,-500.0,0.00035616,10]
[402120558,1768529458755,-500.0,0.00035616,10]
[402120559,1768529458764,-937.12,0.00035616,10]
[402120560,1768529458773,-1472.54,0.00035616,10]
[402120561,1768529458782,-994.89,0.00035616,10]
[402120562,1768529458791,-512.78687853,0.00035616,10]
[402120563,1768529458801,-1614.53,0.00035616,10]
[402120564,1768529459034,-503.45,0.00035616,10]
[402120565,1768529459044,-500.0,0.00035616,10]
[402120566,1768529459054,-500.0,0.00035616,10]
[402120567,1768529459065,-506.1072834,0.00035616,10]
[402120568,1768529459076,-594.69,0.00035616,10]
[402120569,1768529459086,-500.0,0.00035616,10]
[402120570,1768529459095,-500.0,0.00035616,10]
[402120571,1768529459105,-500.0,0.00035616,10]
[402120572,1768529459114,-500.0,0.00035616,10]
[402120573,1768529459123,-734.98,0.00035616,10]
[402120574,1768529459132,-1232.95,0.00035616,10]
[402120575,1768529459141,-559.63,0.00035616,10]
[402120576,1768529459151,-678.14,0.00035616,10]
[402120577,1768529459160,-247.74730665,0.00035616,10]
[402120578,1768529459169,-865.93,0.00035616,10]
[402120579,1768529459181,-1999.0,0.00035616,120]
[402120580,1768529459190,-500.0,0.00035616,10]
[402120581,1768529459199,-500.0,0.00035616,10]
[402120582,1768529459208,-522.41,0.00035616,10]
[402120583,1768529459219,-500.0,0.00035616,10]
[402120584,1768529459229,-500.0,0.00035616,10]
[402120585,1768529459238,-722.27,0.00035616,10]
[402120586,1768529459249,-500.0,0.00035616,10]
[402120587,1768529459258,-708.53,0.00035616,10]
[402120588,1768529459267,-786.48,0.00035616,10]
[402120589,1768529459277,-605.54,0.00035616,10]
[402120590,1768529459286,-505.22894048,0.00035616,10]
[402120591,1768529459295,-3282.3,0.00035616,10]
[402120592,1768529459304,-500.0,0.00035616,5]
[402120593,1768529459314,-506.79156747,0.00035616,10]
[402120594,1768529459323,-851.71,0.00035616,10]
[402120595,1768529459332,-1499.98,0.00035616,10]
[402120596,1768529459342,-828.08,0.00035616,10]
[402120597,1768529459351,-500.0,0.00035616,10]
[402120598,1768529459360,-521.03,0.00035616,10]
[402120599,1768529459370,-500.0,0.00035616,10]
[402120600,1768529459379,-516.29735286,0.00035616,10]
[402120601,1768529459388,-640.71,0.00035616,10]
[402120602,1768529459396,-1841.26,0.00035616,10]
[402120603,1768529459405,-295.95730883,0.00035616,10]
[402120604,1768529459416,-1082.77,0.00035616,10]
[402120605,1768529459425,-548.77,0.00035616,10]
[402120606,1768529459435,-500.0,0.00035616,10]
[402120607,1768529459446,-559.76,0.00035616,10]
[402120608,1768529459455,-1110.87,0.00035616,10]
[402120609,1768529459466,-611.42023049,0.00035616,10]
[402120610,1768529459476,-500.0,0.00035616,10]
[402120611,1768529459485,-863.07,0.00035616,10]
[402120612,1768529459494,-500.0,0.00035616,10]
[402120613,1768529459503,-619.7,0.00035616,10]
[402120614,1768529459513,-503.62805031,0.00035616,10]
[402120615,1768529459523,-500.0,0.00035616,10]
[402120616,1768529459534,-500.0,0.00035616,10]
[402120617,1768529459543,-1009.84,0.00035616,10]
[402120618,1768529459552,-500.0,0.00035616,10]
[402120619,1768529459561,-500.0,0.00035616,10]
[402120620,1768529459571,-1090.99,0.00035616,10]
[402120621,1768529459580,-500.0,0.00035616,10]
[402120622,1768529459590,-734.22,0.00035616,10]
[402120623,1768529459598,-500.0,0.00035616,10]
[402120624,1768529459608,-4408.28,0.00035616,10]
[402120625,1768529459617,-500.0,0.00035616,10]
[402120626,1768529459626,-567.06,0.00035616,10]
[402120627,1768529459636,-500.0,0.00035616,10]
[402120628,1768529459645,-500.0,0.00035616,10]
[402120629,1768529459654,-500.0,0.00035616,10]
[402120630,1768529459664,-1810.34,0.00035616,10]
[402120631,1768529459674,-500.0,0.00035616,10]
[402120632,1768529459685,-976.03,0.00035616,10]
[402120633,1768529459695,-501.45347865,0.00035616,10]
[402120634,1768529459705,-500.0,0.00035616,10]
[402120635,1768529459714,-500.0,0.00035616,10]
[402120636,1768529459724,-691.96,0.00035616,10]
[402120637,1768529459733,-542.50858916,0.00035616,10]
[402120638,1768529459742,-500.0,0.00035616,10]
[402120639,1768529459752,-1061.94,0.00035616,10]
[402120640,1768529459761,-742.07,0.00035616,10]
[402120641,1768529459770,-188.0,0.00035616,10]
[402120642,1768529459779,-611.8369875,0.00035616,2]
[402120643,1768529459788,-800.39462936,0.00035657,2]
[402120644,1768529459797,-757.8,0.00035666,7]
[402120645,1768529459806,-500.0,0.00035668,30]
[402120646,1768529459815,-600.0,0.00035689,30]
[402120647,1768529459824,-600.0,0.00035697,30]
[402120648,1768529459834,-1600.0,0.00035703,14]
[402120649,1768529459843,-800.0,0.00035703,14]
[402120650,1768529459852,-600.0,0.00035714,30]
[402120651,1768529459861,-500.0,0.00035723,30]
[402120652,1768529459871,-328.71656214,0.00035727,30]
[402120653,1768529459880,-500.0,0.00035848,30]
[402120654,1768529459889,-151.0,0.0003589,10]
[402120655,1768529459899,-167.22803,0.0003589,10]
[402120656,1768529459908,-513.28076865,0.0003589,10]
[402120657,1768529459917,-500.0,0.0003589,10]
[402120658,1768529459926,-1074.68,0.0003589,10]
[402120659,1768529459935,-1562.76,0.0003589,10]
[402120660,1768529459945,-500.0,0.0003589,10]
[402120661,1768529459954,-957.34,0.0003589,10]
[402120662,1768529459963,-500.0,0.0003589,10]
[402120663,1768529459972,-500.0,0.0003589,10]
[402120664,1768529459982,-890.1,0.0003589,10]
[402120665,1768529459991,-500.0,0.0003589,10]
[402120666,1768529460000,-523.64,0.0003589,10]
[402120667,1768529460011,-593.33,0.0003589,10]
[402120668,1768529460020,-500.0,0.0003589,10]
[402120669,1768529460029,-500.0,0.0003589,10]
[402120670,1768529460039,-506.03927214,0.0003589,10]
[402120671,1768529460048,-500.0,0.0003589,10]
[402120672,1768529460057,-573.27,0.0003589,10]
[402120673,1768529460067,-500.0,0.0003589,10]
[402120674,1768529460076,-500.0,0.0003589,10]
[402120675,1768529460085,-500.0,0.0003589,10]
[402120676,1768529460095,-512.89,0.0003589,10]
[402120677,1768529460104,-500.0,0.0003589,10]
[402120678,1768529460113,-541.42562815,0.0003589,10]
[402120679,1768529460122,-500.0,0.0003589,10]
[402120680,1768529460131,-517.2,0.0003589,10]
[402120681,1768529460140,-500.0,0.0003589,10]
[402120682,1768529460150,-809.12,0.0003589,10]
[402120683,1768529460160,-500.0,0.0003589,10]
[402120684,1768529460170,-500.0,0.0003589,10]
[402120685,1768529460184,-663.6,0.0003589,10]
[402120686,1768529460193,-500.0,0.0003589,10]
[402120687,1768529460202,-500.0,0.0003589,10]
[402120688,1768529460212,-500.0,0.0003589,10]
[402120689,1768529460222,-500.0,0.0003589,10]